bitfinex-derivatives/quotes_BNBF0:USTF0_20260221
["timestamp","ask_amount","ask_price","bid_price","bid_amount"]
[1771699405183,1.18856834,629.37,628.8,1.605]
[1771699407187,1.18856834,629.38,628.8,1.605]
[1771699413994,1.18856834,629.45,628.8,1.605]
[1771699419295,1.18856834,629.44,628.8,1.605]
[1771699421498,1.18856834,629.44,628.78,1.18518504]
[1771699423997,1.18856834,629.44,628.79,1.395]
[1771699427304,1.18856834,629.44,628.79,2.58018504]
[1771699428304,1.18856834,629.43,628.79,2.58018504]
[1771699435806,1.18856834,629.44,628.81,1.18518504]
[1771699443516,1.18856834,629.44,628.82,1.18518504]
[1771699445319,1.18856834,629.43,628.82,1.18518504]
[1771699450928,1.18856834,629.43,628.79,1.395]
[1771699450929,1.18856834,629.39,628.79,2.58018504]
[1771699452329,1.18856834,629.38,628.79,2.58018504]
[1771699455333,1.18856834,629.38,628.8,1.18518504]
[1771699456329,1.18856834,629.37,628.8,1.18518504]
[1771699458442,1.18856834,629.37,628.81,1.18518504]
[1771699460441,1.18856834,629.37,628.8,1.18518504]
[1771699471555,1.58469365,629.49,628.79,1.395]
[1771699471854,1.19192142,629.37,628.8,1.18637117]
[1771699484863,1.19192142,629.37,628.81,1.413]
[1771699488161,1.19192142,629.36,628.81,1.413]
[1771699491065,1.19192142,629.36,628.81,2.59937117]
[1771699493868,1.19192142,629.42,628.87,1.18637117]
[1771699494073,1.19192142,629.43,628.87,1.18637117]
[1771699494967,1.19192142,629.44,628.87,1.18637117]
[1771699495271,1.19192142,629.45,628.88,1.18637117]
[1771699497175,1.19192142,629.46,628.87,1.18637117]
[1771699500474,1.19192142,629.45,628.86,1.18637117]
[1771699500775,1.19192142,629.44,628.85,1.18637117]
[1771699503181,1.19192142,629.45,628.84,1.18637117]
[1771699508082,1.19192142,629.45,628.85,1.18637117]
[1771699530204,1.19192142,629.44,628.86,1.18637117]
[1771699533709,1.19192142,629.42,628.84,1.18637117]
[1771699534211,1.19192142,629.41,628.84,1.18637117]
[1771699534808,1.19192142,629.4,628.82,1.18637117]
[1771699535008,1.58469365,629.51,628.81,1.413]
[1771699535213,1.19180388,629.4,628.83,1.18742775]
[1771699536110,1.19180388,629.37,628.81,1.413]
[1771699536913,1.19180388,629.37,628.8,1.18742775]
[1771699537710,1.19180388,629.36,628.79,1.18742775]
[1771699539214,1.19180388,629.36,628.78,1.18742775]
[1771699539615,1.19180388,629.32,628.74,1.18742775]
[1771699540316,1.19180388,629.33,628.74,1.18742775]
[1771699540914,1.19180388,629.33,628.75,1.377]
[1771699542117,1.19180388,629.34,628.75,1.377]
[1771699545219,1.19180388,629.35,628.75,1.377]
[1771699547923,1.19180388,629.34,628.75,1.377]
[1771699549223,1.19180388,629.35,628.75,1.377]
[1771699558132,1.19180388,629.36,628.75,1.377]
[1771699562335,1.19180388,629.35,628.75,1.377]
[1771699570142,1.19180388,629.34,628.75,1.377]
[1771699574254,1.19180388,629.33,628.75,1.377]
[1771699576151,1.19180388,629.32,628.75,1.377]
[1771699577454,1.19180388,629.33,628.75,1.377]
[1771699578253,1.19180388,629.32,628.75,1.377]
[1771699579056,1.19180388,629.32,628.74,1.18742775]
[1771699579557,1.19186941,629.32,628.74,1.18772463]
[1771699580157,1.19186941,629.31,628.75,1.18772463]
[1771699583157,1.19186941,629.3,628.76,1.18772463]
[1771699583354,1.19186941,629.3,628.76,2.60472463]
[1771699598269,1.19186941,629.3,628.77,1.18772463]
[1771699603276,1.19186941,629.62,628.99,1.18772463]
[1771699603474,1.19186941,629.67,629.04,1.18772463]
[1771699603673,1.19186941,629.68,629.05,1.18772463]
[1771699603978,1.19186941,629.69,629.06,1.18772463]
[1771699604178,1.19186941,629.71,629.08,1.18772463]
[1771699604378,1.19186941,629.76,629.05,1.18772463]
[1771699604781,1.19186941,629.75,629.05,1.18772463]
[1771699605079,1.58469365,629.86,629.04,1.18772463]
[1771699605080,1.19186941,629.74,629.04,1.18772463]
[1771699605280,1.19186941,629.77,629.02,1.18772463]
[1771699606376,1.19186941,629.78,629.01,1.18772463]
[1771699606578,1.19186941,629.78,629.0,1.18772463]
[1771699607582,1.19186941,629.8,628.99,1.18772463]
[1771699608382,1.19186941,629.81,628.98,1.18772463]
[1771699609384,0.27654054,629.93,628.97,1.18772463]
[1771699609385,1.19186941,629.82,628.97,1.18772463]
[1771699610380,1.19186941,629.83,628.96,1.18772463]
[1771699610881,1.19186941,629.81,628.94,1.18772463]
[1771699611082,1.19186941,629.79,628.92,1.18772463]
[1771699611282,1.19186941,629.78,628.9,1.18772463]
[1771699611583,1.19186941,629.73,628.85,1.18772463]
[1771699612283,1.19186941,629.74,628.85,1.18772463]
[1771699613283,1.19186941,629.74,628.84,1.18772463]
[1771699617390,1.19186941,629.73,628.82,1.18772463]
[1771699620393,1.19186941,629.66,628.76,1.417]
[1771699621193,1.19186941,629.65,628.76,1.417]
[1771699623396,1.19186941,629.68,628.77,1.18772463]
[1771699623597,1.58469365,629.79,628.76,1.417]
[1771699623598,1.19186941,629.86,628.96,1.18772463]
[1771699623798,1.19186941,629.9,628.99,1.18772463]
[1771699624394,1.19186941,629.97,629.05,1.18772463]
[1771699625097,1.19186941,629.97,629.04,1.18772463]
[1771699625300,1.19186941,629.98,629.04,1.18772463]
[1771699626101,1.19186941,629.98,629.03,1.18772463]
[1771699627101,1.19186941,629.99,629.03,1.18772463]
[1771699628098,1.19186941,629.99,629.02,1.18772463]
[1771699628301,0.27641644,630.04,629.24,1.18772463]
[1771699628499,0.27641644,630.04,629.25,0.97322163]
[1771699628801,0.27641644,630.04,629.26,0.97322163]
[1771699629002,0.27641644,630.04,629.27,0.97322163]
[1771699629204,0.27641644,630.04,629.28,0.97322163]
[1771699629404,0.27641644,630.04,629.29,0.97322163]
[1771699629699,0.27641644,630.04,629.3,0.97322163]
[1771699629899,0.27641644,630.04,629.31,0.97322163]
[1771699630100,0.27641644,630.04,629.32,0.97322163]
[1771699630303,0.27641644,630.04,629.33,0.97322163]
[1771699630505,0.27641644,630.04,629.34,0.97322163]
[1771699630701,0.27641644,630.04,629.35,0.97322163]
[1771699630900,0.27641644,630.04,629.36,0.97322163]
[1771699631102,0.27641644,630.04,629.37,0.97322163]
[1771699631303,0.27641644,630.04,629.38,0.97322163]
[1771699631503,0.27641644,630.04,629.39,0.97322163]
[1771699631806,0.27641644,630.04,629.4,0.97322163]
[1771699632007,0.27641644,630.04,629.41,0.97322163]
[1771699632308,0.27641644,630.04,629.42,0.97322163]
[1771699632607,0.27641644,630.04,629.43,0.97322163]
[1771699632807,0.27641644,630.04,629.23,1.18772463]
[1771699633006,0.27641644,630.04,629.24,0.97305593]
[1771699633210,0.27641644,630.04,629.25,0.97305593]
[1771699633410,0.27641644,630.04,629.26,0.97305593]
[1771699633608,0.27641644,630.04,629.27,0.97305593]
[1771699633809,0.27641644,630.04,629.28,0.97305593]
[1771699634005,0.27641644,630.04,629.29,0.97305593]
[1771699634310,0.27641644,630.04,629.3,0.97305593]
[1771699634608,0.27641644,630.04,629.31,0.97305593]
[1771699634808,0.27641644,630.04,629.32,0.97305593]
[1771699635006,0.27641644,630.04,629.33,0.97305593]
[1771699635206,0.27641644,630.04,629.34,0.97305593]
[1771699635410,0.27641644,630.04,629.35,0.97305593]
[1771699635709,0.27641644,630.04,629.36,0.97305593]
[1771699635910,0.27641644,630.04,629.37,0.97305593]
[1771699636209,0.27641644,630.04,629.38,0.97305593]
[1771699636410,0.27641644,630.04,629.39,0.97305593]
[1771699636609,0.27641644,630.04,629.4,0.97305593]
[1771699636806,0.27641644,630.04,629.41,0.97305593]
[1771699637005,0.27641644,630.04,629.42,0.97305593]
[1771699637309,0.27641644,630.04,629.43,0.97305593]
[1771699637507,0.27641644,630.04,629.44,0.97305593]
[1771699637706,0.27641644,630.04,629.4,1.703]
[1771699637910,0.27641644,630.04,629.41,0.97366725]
[1771699638210,0.27641644,630.04,629.42,0.97366725]
[1771699638510,0.27641644,630.04,629.43,0.97366725]
[1771699638709,0.27641644,630.04,629.44,0.97366725]
[1771699638912,0.27641644,630.04,629.4,1.703]
[1771699639212,0.27641644,630.04,629.41,0.97381111]
[1771699639408,0.27641644,630.04,629.42,0.97381111]
[1771699639711,0.27641644,630.04,629.43,0.97381111]
[1771699639909,0.27641644,630.04,629.44,0.97381111]
[1771699640111,0.27641644,630.04,629.45,0.97381111]
[1771699640308,0.27641644,630.04,629.4,1.703]
[1771699640507,0.27641644,630.04,629.41,0.97420283]
[1771699640711,0.27641644,630.04,629.42,0.97420283]
[1771699640909,0.27641644,630.04,629.43,0.97420283]
[1771699641113,0.27641644,630.04,629.44,0.97420283]
[1771699641415,0.27641644,630.04,629.45,0.97420283]
[1771699641712,0.27641644,630.04,629.46,0.97420283]
[1771699641913,0.27641644,630.04,629.4,1.703]
[1771699642113,0.27641644,630.04,629.41,0.97445676]
[1771699642408,0.27641644,630.04,629.4,1.703]
[1771699642409,0.27641644,630.04,629.42,0.97445676]
[1771699642612,0.27641644,630.04,629.4,1.703]
[1771699642613,0.27641644,630.04,629.43,0.97445676]
[1771699642810,0.27641644,630.04,629.44,0.97445676]
[1771699643014,0.27641644,630.04,629.45,0.97445676]
[1771699643314,0.27641644,630.04,629.4,1.703]
[1771699643315,0.27641644,630.04,629.46,0.97445676]
[1771699643514,0.27641644,630.04,629.47,0.97445676]
[1771699643711,0.27641644,630.04,629.48,0.97445676]
[1771699643916,0.27641644,630.04,629.4,1.703]
[1771699644217,0.27641644,630.04,629.41,0.97510084]
[1771699644415,0.27641644,630.04,629.42,0.97510084]
[1771699644712,0.27641644,630.04,629.43,0.97510084]
[1771699644911,0.27641644,630.04,629.44,0.97510084]
[1771699645110,0.27641644,630.04,629.45,0.97510084]
[1771699645314,0.27641644,630.04,629.46,0.97510084]
[1771699645512,0.27641644,630.04,629.47,0.97510084]
[1771699645713,0.27641644,630.04,629.48,0.97510084]
[1771699645913,0.27641644,630.04,629.4,1.703]
[1771699646216,0.27641644,630.04,629.41,0.97597666]
[1771699646413,0.27641644,630.04,629.42,0.97597666]
[1771699646616,0.27641644,630.04,629.43,0.97597666]
[1771699646817,0.27641644,630.04,629.44,0.97597666]
[1771699647017,0.27641644,630.04,629.45,0.97597666]
[1771699647317,0.27641644,630.04,629.46,0.97597666]
[1771699647514,0.27641644,630.04,629.47,0.97597666]
[1771699647716,0.27641644,630.04,629.48,0.97597666]
[1771699648013,0.27641644,630.04,629.49,0.97597666]
[1771699648212,0.27641644,630.04,629.5,0.97597666]
[1771699648517,0.27641644,630.04,629.4,1.703]
[1771699648711,0.27641644,630.04,629.41,0.97767422]
[1771699648912,0.27641644,630.04,629.42,0.97767422]
[1771699649112,0.27641644,630.04,629.4,1.703]
[1771699649313,0.27641644,630.04,629.41,0.97772755]
[1771699649517,0.27641644,630.04,629.4,1.703]
[1771699649715,0.27641644,630.04,629.41,0.97415141]
[1771699649917,0.27641644,630.04,629.42,0.97415141]
[1771699650114,0.27641644,630.04,629.43,0.97415141]
[1771699650316,0.27641644,630.04,629.44,0.97415141]
[1771699650514,0.27641644,630.04,629.45,0.97415141]
[1771699650819,0.27641644,630.04,629.46,0.97415141]
[1771699651014,0.27641644,630.04,629.47,0.97415141]
[1771699651315,0.27641644,630.04,629.48,0.97415141]
[1771699651518,0.27641644,630.04,629.49,0.97415141]
[1771699651817,0.27641644,630.04,629.5,0.97415141]
[1771699652017,0.27641644,630.04,629.4,1.703]
[1771699652313,0.27641644,630.04,629.41,0.97374689]
[1771699652514,0.27641644,630.04,629.42,0.97374689]
[1771699652715,0.27641644,630.04,629.43,0.97374689]
[1771699652916,0.27641644,630.04,629.44,0.97374689]
[1771699653115,0.27641644,630.04,629.45,0.97374689]
[1771699653318,0.27641644,630.04,629.46,0.97374689]
[1771699653517,0.27641644,630.04,629.47,0.97374689]
[1771699653716,0.27641644,630.04,629.4,1.703]
[1771699653717,0.27641644,630.04,629.48,0.97374689]
[1771699653921,0.27641644,630.04,629.49,0.97374689]
[1771699654221,0.27641644,630.04,629.4,1.703]
[1771699654420,0.27641644,630.04,629.41,0.97367281]
[1771699654620,0.27641644,630.04,629.42,0.97367281]
[1771699654817,0.27641644,630.04,629.43,0.97367281]
[1771699655016,0.27641644,630.04,629.44,0.97367281]
[1771699655220,0.27641644,630.04,629.45,0.97367281]
[1771699655418,0.27641644,630.04,629.46,0.97367281]
[1771699655623,0.27641644,630.04,629.47,0.97367281]
[1771699655818,0.27641644,630.04,629.4,1.703]
[1771699656021,0.27641644,630.04,629.41,0.97366556]
[1771699656221,0.27641644,630.04,629.42,0.97366556]
[1771699656423,0.27641644,630.04,629.43,0.97366556]
[1771699656618,0.27641644,630.04,629.44,0.97366556]
[1771699656918,0.27641644,630.04,629.4,1.703]
[1771699657120,0.27641644,630.04,629.41,0.97368445]
[1771699657318,0.27641644,630.04,629.42,0.97368445]
[1771699657522,0.27641644,630.04,629.43,0.97368445]
[1771699657720,0.27641644,630.04,629.44,0.97368445]
[1771699657919,0.27641644,630.04,629.45,0.97368445]
[1771699658123,0.27641644,630.04,629.24,1.18772463]
[1771699658424,0.27641644,630.04,629.16,1.18772463]
[1771699659325,1.85836406,630.04,629.16,1.18772463]
[1771699660525,1.85836406,630.04,629.17,1.18772463]
[1771699660722,1.85836406,630.04,629.17,2.73472463]
[1771699661420,1.58194762,630.03,629.17,2.73472463]
[1771699663326,1.58194762,630.02,629.18,1.18772463]
[1771699664424,1.58194762,630.01,629.18,1.18772463]
[1771699664628,1.58194762,629.99,629.17,1.547]
[1771699664828,1.58194762,629.95,629.17,1.547]
[1771699666030,1.58194762,630.0,629.17,2.73472463]
[1771699666230,1.58194762,629.98,629.18,1.18772463]
[1771699667033,1.58194762,629.96,629.2,1.18772463]
[1771699668136,1.58194762,629.93,629.23,1.18772463]
[1771699668331,1.58194762,629.93,629.23,1.18621094]
[1771699669031,1.58194762,629.94,629.22,1.18621094]
[1771699670938,1.58194762,629.96,629.24,1.18621094]
[1771699671136,1.58194762,630.11,629.39,1.18621094]
[1771699671936,1.58194762,630.11,629.38,1.18621094]
[1771699673033,0.27636704,630.13,629.38,1.18621094]
[1771699673034,1.58194762,630.12,629.38,1.18621094]
[1771699674438,1.58194762,630.12,629.37,1.18621094]
[1771699675941,1.58194762,630.1,629.35,1.18621094]
[1771699679139,1.58194762,630.08,629.32,1.18621094]
[1771699680145,1.58194762,630.08,629.21,1.570881]
[1771699680342,1.58194762,630.07,629.31,1.18389513]
[1771699684042,0.27636704,630.13,629.31,1.18389513]
[1771699684043,1.58194762,630.08,629.31,1.18389513]
[1771699685948,1.58194762,630.1,629.33,1.18389513]
[1771699687345,1.58194762,630.11,629.33,1.18389513]
[1771699688250,0.27636704,630.13,629.43,1.18389513]
[1771699688550,0.27636704,630.13,629.44,0.98336811]
[1771699688749,0.27636704,630.13,629.45,0.98336811]
[1771699688949,0.27636704,630.13,629.46,0.98336811]
[1771699689148,0.27636704,630.13,629.47,0.98336811]
[1771699689352,0.27636704,630.13,629.48,0.98336811]
[1771699689652,0.27636704,630.13,629.49,0.98336811]
[1771699689849,0.27636704,630.13,629.5,0.98336811]
[1771699690049,0.27636704,630.13,629.51,0.98336811]
[1771699690250,0.27636704,630.13,629.52,0.98336811]
[1771699690552,0.27636704,630.13,629.53,0.98336811]
[1771699690747,0.27636704,630.13,629.54,0.98336811]
[1771699690948,0.27636704,630.13,629.55,0.98336811]
[1771699691153,0.27636704,630.13,629.56,0.98336811]
[1771699691347,0.27636704,630.13,629.57,0.98336811]
[1771699691551,0.27636704,630.13,629.58,0.98336811]
[1771699691755,0.27636704,630.13,629.59,0.98336811]
[1771699691951,0.27636704,630.13,629.6,0.98336811]
[1771699692256,0.27636704,630.13,629.61,0.98336811]
[1771699692456,0.27636704,630.13,629.62,0.98336811]
[1771699692655,0.27636704,630.13,629.41,1.18389513]
[1771699692854,0.27636704,630.13,629.42,0.97885808]
[1771699693058,0.27636704,630.13,629.43,0.97885808]
[1771699693256,0.27636704,630.13,629.44,0.97885808]
[1771699693457,0.27636704,630.13,629.45,0.97885808]
[1771699693656,0.27636704,630.13,629.46,0.97885808]
[1771699693956,0.27636704,630.13,629.47,0.97885808]
[1771699694160,0.27636704,630.13,629.3,1.570881]
[1771699694161,0.27636704,630.13,629.48,0.97885808]
[1771699694461,0.27636704,630.13,629.49,0.97885808]
[1771699694757,0.27636704,630.13,629.5,0.97885808]
[1771699695060,0.27636704,630.13,629.51,0.97885808]
[1771699695260,0.27636704,630.13,629.52,0.97885808]
[1771699695458,0.27636704,630.13,629.53,0.97885808]
[1771699695761,0.27636704,630.13,629.54,0.97885808]
[1771699695962,0.27636704,630.13,629.55,0.97885808]
[1771699696163,0.27636704,630.13,629.56,0.97885808]
[1771699696360,0.27636704,630.13,629.36,1.18389513]
[1771699696558,0.27636704,630.13,629.37,0.97036072]
[1771699696759,0.27636704,630.13,629.38,0.97036072]
[1771699696961,0.27636704,630.13,629.39,0.97036072]
[1771699697161,0.27636704,630.13,629.4,0.97036072]
[1771699697362,0.27636704,630.13,629.41,0.97036072]
[1771699697560,0.27636704,630.13,629.36,1.18389513]
[1771699697561,0.27636704,630.13,629.42,0.97036072]
[1771699697764,0.27636704,630.13,629.43,0.97036072]
[1771699697961,0.27636704,630.13,629.44,0.97036072]
[1771699698166,0.27636704,630.13,629.45,0.97036072]
[1771699698467,0.27636704,630.13,629.46,0.97036072]
[1771699698660,0.27636704,630.13,629.47,0.97036072]
[1771699698862,0.27636704,630.13,629.48,0.97036072]
[1771699699066,0.27636704,630.13,629.2,1.570881]
[1771699699067,0.27636704,630.13,629.49,0.97036072]
[1771699699363,0.27636704,630.13,629.5,0.97036072]
[1771699699566,0.27636704,630.13,629.51,0.97036072]
[1771699699762,0.27636704,630.13,629.52,0.97036072]
[1771699699966,0.27636704,630.13,629.32,1.18389513]
[1771699700263,0.27636704,630.13,629.33,0.9705724]
[1771699700463,0.27636704,630.13,629.34,0.9705724]
[1771699700661,0.27636704,630.13,629.35,0.9705724]
[1771699700860,0.27636704,630.13,629.36,0.9705724]
[1771699701062,0.27636704,630.13,629.37,0.9705724]
[1771699701268,0.27636704,630.13,629.38,0.9705724]
[1771699701467,0.27636704,630.13,629.39,0.9705724]
[1771699701668,0.27636704,630.13,629.4,0.9705724]
[1771699701868,0.27636704,630.13,629.41,0.9705724]
[1771699702068,0.27636704,630.13,629.42,0.9705724]
[1771699702365,0.27636704,630.13,629.43,0.9705724]
[1771699702569,0.27636704,630.13,629.44,0.9705724]
[1771699702767,0.27636704,630.13,629.45,0.9705724]
[1771699703069,0.27636704,630.13,629.46,0.9705724]
[1771699703270,0.27636704,630.13,629.47,0.9705724]
[1771699703469,0.27636704,630.13,629.48,0.9705724]
[1771699703667,0.27636704,630.13,629.49,0.9705724]
[1771699703866,0.27636704,630.13,629.5,0.9705724]
[1771699704166,0.27636704,630.13,629.51,0.9705724]
[1771699704467,0.27636704,630.13,629.52,0.9705724]
[1771699704667,0.27636704,630.13,629.32,1.18389513]
[1771699704871,0.27636704,630.13,629.33,0.9705921]
[1771699705169,0.27636704,630.13,629.32,1.18389513]
[1771699705170,0.27636704,630.13,629.34,0.9705921]
[1771699705370,0.27636704,630.13,629.35,0.9705921]
[1771699705567,0.27636704,630.13,629.36,0.9705921]
[1771699705869,0.27636704,630.13,629.37,0.9705921]
[1771699706071,0.27636704,630.13,629.38,0.9705921]
[1771699706268,0.27636704,630.13,629.39,0.9705921]
[1771699706468,0.27636704,630.13,629.4,0.9705921]
[1771699706767,0.27636704,630.13,629.41,0.9705921]
[1771699707068,0.27636704,630.13,629.42,0.9705921]
[1771699707270,0.27636704,630.13,629.43,0.9705921]
[1771699707468,0.27636704,630.13,629.44,0.9705921]
[1771699707767,0.27636704,630.13,629.45,0.9705921]
[1771699708071,0.27636704,630.13,629.46,0.9705921]
[1771699708272,0.27636704,630.13,629.26,1.18389513]
[1771699708470,0.27636704,630.13,629.27,0.97039506]
[1771699708669,0.27636704,630.13,629.28,0.97039506]
[1771699708869,0.27636704,630.13,629.29,0.97039506]
[1771699709071,0.27636704,630.13,629.3,0.97039506]
[1771699709275,0.27636704,630.13,629.31,0.97039506]
[1771699709570,0.27636704,630.13,629.32,0.97039506]
[1771699709774,0.27636704,630.13,629.33,0.97039506]
[1771699709971,0.27636704,630.13,629.34,0.97039506]
[1771699710175,0.27636704,630.13,629.35,0.97039506]
[1771699710471,0.27636704,630.13,629.36,0.97039506]
[1771699710669,0.27636704,630.13,629.37,0.97039506]
[1771699710873,2.65413652,630.13,629.38,0.97039506]
[1771699711071,2.65413652,630.13,629.39,0.97039506]
[1771699711376,2.37776948,630.12,629.4,0.97039506]
[1771699711575,2.37776948,630.12,629.41,0.97039506]
[1771699711773,2.37776948,630.12,629.42,0.97039506]
[1771699711971,2.37776948,630.12,629.43,0.97039506]
[1771699712176,2.37776948,630.12,629.44,0.97039506]
[1771699712376,2.37776948,630.12,629.24,1.18389513]
[1771699712577,2.37776948,630.12,629.25,0.96997286]
[1771699712777,2.37776948,630.12,629.26,0.96997286]
[1771699712973,2.37776948,630.12,629.27,0.96997286]
[1771699713176,2.37776948,630.12,629.28,0.96997286]
[1771699713377,2.37776948,630.12,629.29,0.96997286]
[1771699713678,2.37776948,630.12,629.3,0.96997286]
[1771699713974,2.37776948,630.12,629.31,0.96997286]
[1771699714172,2.37776948,630.12,629.25,1.18389513]
[1771699714173,2.37776948,630.11,629.32,0.96997286]
[1771699714374,2.37776948,630.11,629.33,0.96997286]
[1771699714574,2.37776948,630.11,629.34,0.96997286]
[1771699714773,2.37776948,630.11,629.35,0.96997286]
[1771699714975,2.37776948,630.11,629.36,0.96997286]
[1771699715178,2.37776948,630.11,629.25,1.18389513]
[1771699715179,2.37776948,630.11,629.37,0.96997286]
[1771699715478,2.37776948,630.11,629.38,0.96997286]
[1771699715675,2.37776948,630.11,629.39,0.96997286]
[1771699715879,0.27636704,630.13,629.4,0.96997286]
[1771699716175,0.27636704,630.13,629.41,0.96997286]
[1771699716373,0.27636704,630.13,629.42,0.96997286]
[1771699716574,0.27636704,630.13,629.43,0.96997286]
[1771699716775,0.27636704,630.13,629.44,0.96997286]
[1771699716976,0.27636704,630.13,629.45,0.96997286]
[1771699717179,0.27636704,630.13,629.46,0.96997286]
[1771699717377,0.27636704,630.13,629.47,0.96997286]
[1771699717581,0.27636704,630.13,629.48,0.96997286]
[1771699717875,0.27636704,630.13,629.46,1.548]
[1771699717876,0.27636704,630.13,629.49,0.96997286]
[1771699718078,0.27636704,630.13,629.5,0.96997286]
[1771699718277,1.1899314,629.81,629.46,1.548]
[1771699721484,1.1899314,629.83,629.46,1.548]
[1771699721679,1.1899314,629.88,629.46,1.548]
[1771699725981,1.1899314,629.89,629.46,1.548]
[1771699728184,1.1899314,629.9,629.46,1.548]
[1771699736596,1.1899314,629.96,629.46,1.548]
[1771699736895,0.27636704,630.13,629.46,1.548]
[1771699736896,1.1899314,630.04,629.46,1.548]
[1771699737090,1.1899314,630.05,629.46,1.548]
[1771699738195,1.1899314,630.06,629.46,1.548]
[1771699738492,1.1899314,630.06,629.4,1.18389513]
[1771699739095,1.1899314,630.06,629.39,1.18389513]
[1771699741697,1.1899314,630.07,629.39,1.18389513]
[1771699741898,1.1899314,630.07,629.38,1.18389513]
[1771699742295,1.1899314,630.08,629.38,1.18389513]
[1771699742699,1.1899314,630.08,629.39,1.124]
[1771699745097,0.27636704,630.13,629.39,1.124]
[1771699745098,1.1899314,630.09,629.39,1.124]
[1771699747302,1.1899314,630.1,629.39,1.124]
[1771699748405,1.46629844,630.13,629.39,2.30789513]
[1771699749206,1.46629844,630.13,629.39,1.124]
[1771699753410,0.27636704,630.13,629.39,1.124]
[1771699756119,1.46629844,630.13,629.39,1.124]
[1771699756318,0.27636704,630.13,629.39,1.124]
[1771699757114,1.46629844,630.13,629.39,1.124]
[1771699760421,1.1899314,630.13,629.39,1.124]
[1771699760723,1.1899314,630.17,629.42,1.18389513]
[1771699762119,1.1899314,630.16,629.43,1.18389513]
[1771699762421,1.1899314,630.17,629.43,1.18389513]
[1771699763221,1.1899314,630.16,629.43,1.18389513]
[1771699766225,1.1899314,630.15,629.44,1.18389513]
[1771699770329,1.1899314,630.14,629.45,1.18389513]
[1771699770528,1.1899314,630.09,629.39,2.30789513]
[1771699771330,1.1899314,630.09,629.4,1.18389513]
[1771699772130,1.1899314,630.08,629.4,1.18389513]
[1771699774232,1.1899314,630.08,629.41,1.18389513]
[1771699775333,1.1899314,630.07,629.41,1.18389513]
[1771699777130,1.1899314,630.06,629.42,1.18389513]
[1771699778435,1.1899314,630.05,629.41,1.18389513]
[1771699779335,1.1899314,630.04,629.42,1.18389513]
[1771699779939,1.1899314,630.04,629.43,1.344]
[1771699780335,1.1899314,630.03,629.43,2.52789513]
[1771699781238,1.1899314,630.02,629.44,1.18389513]
[1771699783739,1.1899314,630.01,629.43,2.52789513]
[1771699790348,1.1899314,630.02,629.43,2.52789513]
[1771699790846,1.1899314,630.01,629.43,2.52789513]
[1771699791346,1.1899314,630.02,629.43,2.52789513]
[1771699794948,2.37776948,630.24,629.43,2.52789513]
[1771699794949,1.1899314,630.01,629.43,1.344]
[1771699795551,1.1899314,630.0,629.43,1.344]
[1771699795748,1.1899314,629.99,629.43,1.344]
[1771699795951,1.1899314,629.98,629.43,1.344]
[1771699796653,1.1899314,629.96,629.43,1.344]
[1771699796854,1.1899314,629.95,629.43,1.344]
[1771699798350,1.1899314,629.96,629.43,1.344]
[1771699802158,1.1899314,629.97,629.43,1.344]
[1771699805359,1.1899314,629.93,629.43,1.344]
[1771699808367,1.1899314,629.92,629.43,1.344]
[1771699808666,1.1899314,629.91,629.43,1.344]
[1771699809169,1.1899314,629.92,629.43,1.344]
[1771699809369,1.1899314,629.91,629.43,1.344]
[1771699810268,1.1899314,629.92,629.43,1.344]
[1771699810466,0.27629793,630.28,629.43,1.344]
[1771699810467,1.1899314,629.85,629.43,1.344]
[1771699811270,1.1899314,629.86,629.43,1.344]
[1771699811568,1.1899314,629.85,629.43,1.344]
[1771699812266,1.1899314,629.86,629.43,1.344]
[1771699812970,1.1899314,629.86,629.18,1.18389513]
[1771699813275,1.1899314,629.86,629.17,1.18389513]
[1771699814271,1.1899314,629.87,629.17,1.18389513]
[1771699815274,1.1899314,629.87,629.16,1.18389513]
[1771699815575,1.1899314,629.87,629.18,1.094]
[1771699817175,1.1899314,629.88,629.18,1.094]
[1771699819374,1.1899314,629.93,629.2,1.18389513]
[1771699823378,1.1899314,629.98,629.24,1.18389513]
[1771699823674,1.1899314,629.98,629.25,1.18389513]
[1771699825379,1.1899314,629.98,629.26,1.18389513]
[1771699828279,1.1899314,629.97,629.26,1.18389513]
[1771699831382,1.1899314,629.98,629.28,1.18389513]
[1771699833484,1.1899314,629.98,629.29,1.18389513]
[1771699835380,1.1899314,629.97,629.29,1.18389513]
[1771699836685,1.1899314,629.97,629.3,1.608]
[1771699837383,1.1899314,629.97,629.3,2.79189513]
[1771699838583,1.1899314,629.96,629.3,2.79189513]
[1771699841192,1.1899314,629.96,629.31,1.18389513]
[1771699844294,1.1899314,629.95,629.31,1.18389513]
[1771699858304,1.1899314,629.95,629.32,1.18389513]
[1771699859104,1.1899314,629.96,629.33,1.18389513]
[1771699860204,1.1899314,629.96,629.34,1.18389513]
[1771699861305,1.1899314,629.95,629.34,1.18389513]
[1771699863208,1.1899314,629.94,629.35,1.18389513]
[1771699865214,1.1899314,629.93,629.36,1.18389513]